fUST/lending_fUST_20240824
["ID","MTS","AMOUNT","RATE_DAILY","PERIOD"]
[335761971,1724481044230,-3773.61,0.00013698,2]
[335761972,1724481044241,-500.0,0.00013698,2]
[335761973,1724481044252,-3773.61,0.00013698,2]
[335761974,1724481044262,-3773.61,0.00013698,2]
[335761975,1724481044273,-2446.63,0.00013698,2]
[335761976,1724481044283,-3773.61,0.00013698,2]
[335761977,1724481044293,-669.47,0.00013698,2]
[335761978,1724481044303,-766.92,0.00013698,2]
[335761979,1724481044312,-1178.43,0.00013698,2]
[335761980,1724481044322,-500.0,0.00013698,2]
[335761981,1724481044333,-646.13,0.00013698,2]
[335761982,1724481044343,-660.83,0.00013698,2]
[335761983,1724481044354,-500.0,0.00013698,2]
[335761984,1724481044364,-500.0,0.00013698,2]
[335761985,1724481044374,-500.0,0.00013698,2]
[335761986,1724481044385,-3627.55,0.00013698,2]
[335761987,1724481044397,-2204.09,0.00013698,2]
[335761988,1724481044407,-2084.2,0.00013698,2]
[335761989,1724481044417,-500.0,0.00013698,2]
[335761990,1724481044430,-880.15,0.00013698,2]
[335761991,1724481044441,-20048.66,0.00013698,2]
[335761992,1724481044450,-500.0,0.00013698,2]
[335761993,1724481044459,-886.86,0.00013698,2]
[335761994,1724481044470,-500.0,0.00013698,2]
[335761995,1724481044480,-950.61,0.00013698,2]
[335761996,1724481044490,-500.0,0.00013698,2]
[335761997,1724481044500,-947.16,0.00013698,2]
[335761998,1724481044510,-500.0,0.00013698,2]
[335761999,1724481044520,-500.0,0.00013698,2]
[335762000,1724481044530,-514.28447796,0.00013698,2]
[335762001,1724481045066,-5439.72552204,0.00013698,2]
[335762002,1724481045075,-500.0,0.00013698,2]
[335762003,1724481045084,-500.0,0.00013698,2]
[335762004,1724481045093,-500.0,0.00013698,2]
[335762005,1724481045103,-3417.72,0.00013698,2]
[335762006,1724481045113,-500.0,0.00013698,2]
[335762007,1724481045122,-9232.4,0.00013698,2]
[335762008,1724481045131,-500.0,0.00013698,2]
[335762009,1724481045140,-789.32,0.00013698,2]
[335762010,1724481045150,-4407.82126465,0.00013698,2]
[335762011,1724481045234,-4200.44873535,0.00013698,2]
[335762012,1724481045244,-1241.26,0.00013698,2]
[335762013,1724481045254,-500.0,0.00013698,2]
[335762014,1724481045264,-1049.56,0.00013698,2]
[335762015,1724481045274,-692.41,0.00013698,2]
[335762016,1724481045283,-500.0,0.00013698,2]
[335762017,1724481045293,-760.87,0.00013698,2]
[335762018,1724481045303,-658.54,0.00013698,2]
[335762019,1724481045312,-317.59539575,0.00013698,2]
[335762020,1724481045322,-2756.88,0.00013698,2]
[335762021,1724481045331,-500.0,0.00013698,2]
[335762022,1724481045340,-500.0,0.00013698,2]
[335762023,1724481045349,-500.0,0.00013698,2]
[335762024,1724481045359,-500.0,0.00013698,2]
[335762025,1724481045543,-500.0,0.00013698,2]
[335762026,1724481045554,-500.0,0.00013698,2]
[335762027,1724481045563,-502.22111403,0.00013698,2]
[335762029,1724481045573,-500.0,0.00013698,2]
[335762031,1724481045582,-500.0,0.00013698,2]
[335762033,1724481045591,-500.0,0.00013698,2]
[335762035,1724481045601,-500.0,0.00013698,2]
[335762036,1724481045611,-534.63057297,0.00013698,2]
[335762038,1724481045620,-3498.08,0.00013698,2]
[335762040,1724481045630,-635.58,0.00013698,2]
[335762042,1724481045639,-895.97,0.00013698,2]
[335762044,1724481045649,-500.0,0.00013698,2]
[335762046,1724481045658,-920.75,0.00013698,2]
[335762048,1724481045668,-1894.99,0.00013698,2]
[335762050,1724481045678,-500.0,0.00013698,2]
[335762052,1724481045687,-500.0,0.00013698,2]
[335762054,1724481045696,-501.33843151,0.00013698,2]
[335762056,1724481045705,-878.8,0.00013698,2]
[335762057,1724481045715,-433.15344614,0.00013698,2]
[335762059,1724481045724,-500.0,0.00013698,2]
[335762061,1724481045733,-1825.43,0.00013698,2]
[335762063,1724481045743,-500.0,0.00013698,2]
[335762065,1724481045754,-500.0,0.00013698,2]
[335762067,1724481045765,-254.71393384,0.00013698,2]
[335762069,1724481045775,-514.35,0.00013698,2]
[335762070,1724481045784,-924.91,0.00013698,2]
[335762072,1724481045794,-21000.36,0.00013698,2]
[335762074,1724481045804,-500.0,0.00013698,2]
[335762076,1724481045813,-500.0,0.00013698,2]
[335762078,1724481045822,-9471.36,0.00013698,2]
[335762080,1724481045831,-531.77767104,0.00013698,2]
[335762081,1724481045840,-500.0,0.00013698,2]
[335762083,1724481045850,-500.0,0.00013698,2]
[335762085,1724481045859,-1004.36,0.00013698,2]
[335762086,1724481045869,-10929.79,0.00013698,2]
[335762087,1724481045879,-500.0,0.00013698,2]
[335762088,1724481045888,-5113.11,0.00013698,2]
[335762089,1724481045898,-643.50200613,0.00013698,2]
[335762090,1724481045907,-1394.28,0.00013698,2]
[335762091,1724481045916,-899.19,0.00013698,2]
[335762092,1724481045927,-500.0,0.00013698,2]
[335762093,1724481045939,-2494.36,0.00013698,2]
[335762094,1724481045951,-500.0,0.00013698,2]
[335762095,1724481045961,-5314.84,0.00013698,2]
[335762096,1724481045974,-500.0,0.00013698,2]
[335762097,1724481045984,-515.1272377,0.00013698,2]
[335762098,1724481045995,-500.0,0.00013698,2]
[335762099,1724481046007,-683.54,0.00013698,2]
[335762100,1724481046023,-500.0,0.00013698,2]
[335762101,1724481046032,-1520.92,0.00013698,2]
[335762102,1724481046041,-2901.59,0.00013698,2]
[335762103,1724481046051,-1018.56,0.00013698,2]
[335762104,1724481046060,-500.0,0.00013698,2]
[335762105,1724481046069,-500.0,0.00013698,2]
[335762106,1724481046079,-500.0,0.00013698,2]
[335762107,1724481046090,-500.0,0.00013698,2]
[335762108,1724481046099,-500.0,0.00013698,2]
[335762109,1724481046109,-500.0,0.00013698,2]
[335762110,1724481046119,-500.0,0.00013698,2]
[335762111,1724481046130,-500.0,0.00013698,2]
[335762112,1724481046139,-500.0,0.00013698,2]
[335762113,1724481046150,-500.0,0.00013698,2]
[335762114,1724481046161,-500.0,0.00013698,2]
[335762115,1724481046170,-500.0,0.00013698,2]
[335762116,1724481046180,-500.0,0.00013698,2]
[335762117,1724481046189,-500.0,0.00013698,2]
[335762118,1724481046198,-500.0,0.00013698,2]
[335762119,1724481046207,-583.51,0.00013698,2]
[335762120,1724481046216,-930.78,0.00013698,2]
[335762121,1724481046225,-577.55,0.00013698,2]
[335762122,1724481046235,-500.0,0.00013698,2]
[335762123,1724481046245,-826.05,0.00013698,2]
[335762124,1724481046255,-643.02,0.00013698,2]
[335762125,1724481046265,-778.96,0.00013698,2]
[335762126,1724481046275,-500.0,0.00013698,2]
[335762127,1724481046284,-3217.48,0.00013698,2]
[335762128,1724481046295,-500.0,0.00013698,2]
[335762129,1724481046306,-500.0,0.00013698,2]
[335762130,1724481046317,-500.0,0.00013698,2]
[335762131,1724481046326,-500.0,0.00013698,2]
[335762132,1724481046336,-1787.43,0.00013698,2]
[335762133,1724481046347,-2032.72,0.00013698,2]
[335762134,1724481046356,-2309.08,0.00013698,2]
[335762135,1724481046365,-7058.42,0.00013698,2]
[335762136,1724481046374,-538.46,0.00013698,2]
[335762137,1724481046384,-960.17,0.00013698,2]
[335762138,1724481046393,-971.56,0.00013698,2]
[335762139,1724481046402,-2282.92421799,0.00013698,3]
[335762140,1724481046412,-4641.65,0.00013698,2]
[335762141,1724481046421,-3439.97,0.00013698,2]
[335762142,1724481046431,-1573.42,0.00013698,2]
[335762143,1724481046440,-1252.49,0.00013698,2]
[335762144,1724481046450,-500.0,0.00013698,2]
[335762145,1724481046459,-529.51,0.00013698,2]
[335762146,1724481046468,-10146.13,0.00013698,2]
[335762147,1724481046478,-500.0,0.00013698,2]
[335762148,1724481046487,-500.0,0.00013698,2]
[335762149,1724481046497,-676.73,0.00013698,2]
[335762150,1724481046506,-500.0,0.00013698,2]
[335762151,1724481046515,-500.0,0.00013698,2]
[335762152,1724481046524,-773.3,0.00013698,2]
[335762153,1724481046535,-731.57,0.00013698,2]
[335762154,1724481046544,-500.0,0.00013698,2]
[335762155,1724481046554,-500.0,0.00013698,2]
[335762156,1724481046563,-500.0,0.00013698,2]
[335762157,1724481046573,-3131.53,0.00013698,2]
[335762158,1724481046583,-599.98714986,0.00013698,2]
[335762159,1724481046592,-500.0,0.00013698,2]
[335762160,1724481046601,-500.0,0.00013698,2]
[335762161,1724481046610,-427.47475264,0.00013698,2]
[335762162,1724481046619,-500.0,0.00013698,2]
[335762163,1724481046628,-14076.01,0.00013698,2]
[335762164,1724481046639,-500.0,0.00013698,2]
[335762165,1724481046648,-3000.0,0.00013699,2]
[335762166,1724481046657,-1252.249933,0.00013699,2]
[335762167,1724481046667,-500.00000006,0.00013699,2]
[335762168,1724481046676,-194.91980144,0.00013699,2]
[335762169,1724481046686,-467.220697,0.000138,2]
[335762170,1724481046695,-467.220697,0.000138,2]
[335762171,1724481046704,-150.112233,0.000138,2]
[335762172,1724481046714,-150.112233,0.000138,2]
[335762173,1724481046723,-150.112233,0.000139,2]
[335762174,1724481046732,-150.112233,0.000139,2]
[335762175,1724481046741,-150.112233,0.000139,2]
[335762176,1724481046751,-3773.61,0.0001397,2]
[335762177,1724481046761,-969.21,0.00013971,2]
[335762178,1724481046771,-969.21,0.00013971,2]
[335762179,1724481046780,-969.21,0.00013971,2]
[335762180,1724481046790,-969.21,0.00013971,2]
[335762181,1724481046799,-969.21,0.00013971,2]
[335762182,1724481046808,-969.21,0.00013971,2]
[335762183,1724481046817,-969.21,0.00013971,2]
[335762184,1724481046826,-3773.61,0.00013971,2]
[335762185,1724481046835,-3773.61,0.00013971,2]
[335762186,1724481046844,-3773.61,0.00013971,2]
[335762187,1724481046853,-3773.61,0.00013971,2]
[335762188,1724481046862,-3773.61,0.00013971,2]
[335762189,1724481046871,-3773.68177042,0.00013971,2]
[335762190,1724481046880,-500.0,0.00013971,2]
[335762191,1724481046890,-500.0,0.00013971,2]
[335762192,1724481046899,-500.0,0.00013971,2]
[335762193,1724481046908,-500.0,0.00013971,2]
[335762194,1724481046918,-500.0,0.00013971,2]
[335762195,1724481046926,-500.0,0.00013971,2]
[335762196,1724481046936,-500.0,0.00013971,2]
[335762197,1724481046946,-467.220697,0.00013972,2]
[335762198,1724481046955,-467.220697,0.00013972,2]
[335762199,1724481046964,-467.220697,0.00013972,2]
[335762200,1724481046979,-467.220697,0.00013972,2]
[335762201,1724481046988,-467.220697,0.00013972,2]
[335762202,1724481046997,-467.220697,0.00013972,2]
[335762203,1724481047006,-510.20133375,0.00013972,2]
[335762204,1724481047016,-161.54525544,0.00013972,2]
[335762205,1724481047025,-500.0,0.00013972,2]
[335762206,1724481047034,-500.0,0.00013972,2]
[335762207,1724481047045,-500.0,0.00013972,2]
[335762208,1724481047055,-500.0,0.00013972,2]
[335762209,1724481047064,-953.55,0.00013972,2]
[335762210,1724481047073,-500.0,0.00013972,2]
[335762211,1724481047082,-844.5,0.00013972,2]
[335762212,1724481047091,-500.0,0.00013972,2]
[335762213,1724481047100,-500.0,0.00013972,2]
[335762214,1724481047109,-500.0,0.00013972,2]
[335762215,1724481047118,-501.03401898,0.00013972,2]
[335762216,1724481047127,-500.0,0.00013972,2]
[335762217,1724481047137,-865.36,0.00013972,2]
[335762218,1724481047146,-500.0,0.00013972,2]
[335762219,1724481047156,-500.0,0.00013972,2]
[335762220,1724481047165,-500.0,0.00013972,2]
[335762221,1724481047174,-500.0,0.00013972,2]
[335762222,1724481047183,-707.9,0.00013972,2]
[335762223,1724481047192,-500.0,0.00013972,2]
[335762224,1724481047201,-554.91,0.00013972,2]
[335762225,1724481047211,-528.47,0.00013972,2]
[335762226,1724481047220,-500.0,0.00013972,2]
[335762227,1724481047229,-664.13,0.00013972,2]
[335762228,1724481047238,-500.0,0.00013972,2]
[335762229,1724481047247,-500.0,0.00013972,2]
[335762230,1724481047256,-500.0,0.00013972,2]
[335762231,1724481047267,-500.0,0.00013972,2]
[335762232,1724481047276,-500.0,0.00013972,2]
[335762233,1724481047285,-500.0,0.00013972,2]
[335762234,1724481047294,-500.0,0.00013972,2]
[335762235,1724481047303,-539.63,0.00013972,2]
[335762236,1724481047313,-501.06985479,0.00013972,2]
[335762237,1724481047322,-500.0,0.00013972,2]
[335762238,1724481047332,-150.0,0.00013972,2]
[335762239,1724481047341,-500.0,0.00013972,2]
[335762240,1724481047350,-500.0,0.00013972,2]
[335762241,1724481047359,-500.0,0.00013972,2]
[335762242,1724481047368,-943.08,0.00013972,2]
[335762243,1724481047378,-500.0,0.00013972,2]
[335762244,1724481047387,-500.0,0.00013972,2]
[335762245,1724481047396,-738.79,0.00013972,2]
[335762246,1724481047405,-526.18,0.00013972,2]
[335762247,1724481047415,-500.0,0.00013972,2]
[335762248,1724481047424,-640.87,0.00013972,2]
[335762249,1724481047433,-510.55,0.00013972,2]
[335762250,1724481047442,-500.0,0.00013972,2]
[335762251,1724481047452,-500.0,0.00013972,2]
[335762252,1724481047461,-618.28,0.00013972,2]
[335762253,1724481047470,-500.0,0.00013972,2]
[335762254,1724481047479,-500.0,0.00013972,2]
[335762255,1724481047488,-598.20045849,0.00013972,2]
[335762256,1724481047497,-500.0,0.00013972,2]
[335762257,1724481047506,-500.0,0.00013972,2]
[335762258,1724481047516,-500.0,0.00013972,2]
[335762259,1724481047525,-500.0,0.00013972,2]
[335762260,1724481047535,-500.0,0.00013972,2]
[335762261,1724481047544,-891.17,0.00013972,2]
[335762262,1724481047553,-653.94,0.00013972,2]
[335762263,1724481047562,-500.0,0.00013972,2]
[335762264,1724481047571,-500.0,0.00013972,2]
[335762265,1724481047584,-500.0,0.00013972,2]
[335762266,1724481047594,-500.0,0.00013972,2]
[335762267,1724481047603,-500.0,0.00013972,2]
[335762268,1724481047613,-500.0,0.00013972,2]
[335762269,1724481047622,-500.0,0.00013972,2]
[335762270,1724481047631,-500.0,0.00013972,2]
[335762271,1724481047640,-500.0,0.00013972,2]
[335762272,1724481047650,-500.0,0.00013972,2]
[335762273,1724481047659,-392.54433807,0.00013972,2]
[335762274,1724481047668,-500.0,0.00013972,2]
[335762275,1724481047678,-500.0,0.00013972,2]
[335762276,1724481047688,-500.0,0.00013972,2]
[335762277,1724481047697,-500.0,0.00013972,2]
[335762278,1724481047707,-500.0,0.00013972,2]
[335762279,1724481047716,-202.25023143,0.00013972,2]
[335762280,1724481047725,-500.0,0.00013972,2]
[335762281,1724481047734,-500.0,0.00013972,2]
[335762282,1724481047744,-500.0,0.00013972,2]
[335762283,1724481047753,-500.0,0.00013972,2]
[335762284,1724481047763,-500.0,0.00013972,2]
[335762285,1724481047773,-500.0,0.00013972,2]
[335762286,1724481047782,-500.0,0.00013972,2]
[335762287,1724481047792,-500.0,0.00013972,2]
[335762288,1724481047802,-1075.59,0.00013972,2]
[335762289,1724481047811,-799.71,0.00013972,2]
[335762290,1724481047821,-551.4,0.00013972,2]
[335762291,1724481047830,-1158.99,0.00013972,2]
[335762292,1724481047839,-500.0,0.00013972,2]
[335762293,1724481047849,-473.13330551,0.00013972,2]
[335762294,1724481047859,-622.28278891,0.00013972,2]
[335762295,1724481047869,-500.0,0.00013972,2]
[335762296,1724481047878,-500.0,0.00013972,2]
[335762297,1724481047887,-901.14,0.00013972,2]
[335762298,1724481047897,-500.0,0.00013972,2]
[335762299,1724481047907,-789.84,0.00013972,2]
[335762300,1724481047916,-500.0,0.00013972,2]
[335762301,1724481047926,-541.62,0.00013972,2]
[335762302,1724481047935,-506.71770182,0.00013972,2]
[335762303,1724481047944,-581.01,0.00013972,2]
[335762304,1724481047954,-500.0,0.00013972,2]
[335762305,1724481047963,-500.0,0.00013972,2]
[335762306,1724481047976,-500.0,0.00013972,2]
[335762307,1724481047985,-500.0,0.00013972,2]
[335762308,1724481047995,-608.19,0.00013972,2]
[335762309,1724481048004,-500.0,0.00013972,2]
[335762310,1724481048016,-500.0,0.00013972,2]
[335762311,1724481048025,-949.77,0.00013972,2]
[335762312,1724481048035,-500.0,0.00013972,2]
[335762313,1724481048044,-500.0,0.00013972,2]
[335762314,1724481048055,-386.26596182,0.00013972,2]
[335762315,1724481048065,-500.0,0.00013972,2]
[335762316,1724481048074,-500.0,0.00013972,2]
[335762317,1724481048083,-561.59264497,0.00013972,2]
[335762318,1724481048092,-724.2,0.00013972,2]
[335762319,1724481048101,-600.1766045,0.00013972,2]
[335762320,1724481048111,-1500.44,0.00013972,2]
[335762321,1724481048120,-1051.86,0.00013972,2]
[335762322,1724481048130,-869.78,0.00013972,2]
[335762323,1724481048139,-500.0,0.00013972,2]
[335762324,1724481048148,-500.0,0.00013972,2]
[335762325,1724481048158,-559.02,0.00013972,2]
[335762326,1724481048167,-500.0,0.00013972,2]
[335762327,1724481048177,-500.0,0.00013972,2]
[335762328,1724481048187,-675.05,0.00013972,2]
[335762329,1724481048196,-542.47,0.00013972,2]
[335762330,1724481048205,-500.0,0.00013972,2]
[335762331,1724481048215,-500.0,0.00013972,2]
[335762332,1724481048224,-206.16780181,0.00013972,2]
[335762333,1724481048234,-500.0,0.00013972,2]
[335762334,1724481048244,-542.73,0.00013972,2]
[335762335,1724481048253,-500.0,0.00013972,2]
[335762336,1724481048264,-500.0,0.00013972,2]
[335762337,1724481048273,-500.0,0.00013972,2]
[335762338,1724481048283,-500.0,0.00013972,2]
[335762339,1724481048293,-500.0,0.00013972,2]
[335762340,1724481048303,-786.39,0.00013972,2]
[335762341,1724481048312,-393.31312517,0.00013972,2]
[335762342,1724481048322,-686.41,0.00013972,2]
[335762343,1724481048331,-500.0,0.00013972,2]
[335762344,1724481048341,-500.0,0.00013972,2]
[335762345,1724481048351,-500.0,0.00013972,2]
[335762346,1724481048363,-500.0,0.00013972,2]
[335762347,1724481048372,-500.32916369,0.00013972,2]
[335762348,1724481048382,-832.7,0.00013972,2]
[335762349,1724481048391,-552.99,0.00013972,2]
[335762350,1724481048402,-1034.35,0.00013972,2]
[335762351,1724481048412,-500.0,0.00013972,2]
[335762352,1724481048422,-571.72,0.00013972,2]
[335762353,1724481048432,-501.41627192,0.00013972,2]
[335762354,1724481048442,-517.5,0.00013972,2]
[335762355,1724481048453,-500.0,0.00013972,2]
[335762356,1724481048462,-662.05,0.00013972,2]
[335762357,1724481048471,-500.0,0.00013972,2]
[335762358,1724481048480,-500.0,0.00013972,2]
[335762359,1724481048490,-500.0,0.00013972,2]
[335762360,1724481048499,-500.0,0.00013972,2]
[335762361,1724481048510,-500.0,0.00013972,2]
[335762362,1724481048519,-555.86252901,0.00013972,2]
[335762363,1724481048528,-1181.85,0.00013972,2]
[335762364,1724481048538,-500.0,0.00013972,2]
[335762365,1724481048547,-500.0,0.00013972,2]
[335762366,1724481048556,-627.59,0.00013972,2]
[335762367,1724481048566,-1390.88486318,0.00013972,2]
[335762368,1724481049609,-332.92760639,0.00013698,2]
[335762369,1724481049622,-500.0,0.00013698,2]
[335762370,1724481049633,-925.81513682,0.00013972,2]
[335762371,1724481049646,-500.0,0.00013972,2]
[335762372,1724481049656,-500.0,0.00013972,2]
[335762373,1724481049666,-1172.28,0.00013972,2]
[335762374,1724481049676,-384.31784247,0.00013972,2]
[335762375,1724481049687,-500.0,0.00013972,2]
[335762376,1724481049698,-573.9,0.00013972,2]
[335762377,1724481049709,-500.0,0.00013972,2]
[335762378,1724481049720,-534.46,0.00013972,2]
[335762379,1724481049731,-500.0,0.00013972,2]
[335762380,1724481049741,-1034.07,0.00013972,2]
[335762381,1724481049751,-1807.13,0.00013972,2]
[335762382,1724481049760,-500.0,0.00013972,2]
[335762383,1724481049770,-500.0,0.00013972,2]
[335762384,1724481049780,-500.0,0.00013972,2]
[335762385,1724481049789,-500.0,0.00013972,2]
[335762386,1724481049799,-500.0,0.00013972,2]
[335762387,1724481049808,-414.45913834,0.00013972,2]
[335762388,1724481049820,-85.54086166,0.00013972,2]
[335762389,1724481049830,-500.0,0.00013972,2]
[335762390,1724481049839,-282.72978562,0.00013972,2]
[335762427,1724481174651,500.0,0.00027,120]
[335762428,1724481187127,500.0,0.00027,120]
[335762429,1724481211054,656.88607182,0.00027,120]
[335762442,1724481640231,10000.0,0.00025,60]
[335762443,1724481730039,1000.0,0.00027,120]
[335762445,1724481739611,1000.0,0.00025,60]
[335762455,1724482033158,-453.0456667,0.00012489,2]
[335762456,1724482033181,-163.400557,0.00012743,2]
[335762457,1724482033205,-163.400557,0.00012838,2]
[335762458,1724482033227,-163.400557,0.00012933,2]
[335762459,1724482033247,-743.32936268,0.00012989,2]
[335762460,1724482034185,-13.20267512,0.00012989,2]
[335762461,1724482034206,-247.22607242,0.00012989,2]
[335762462,1724482034445,-1523.476467,0.00013,4]
[335762463,1724482034480,-1000.0,0.00013,13]
[335762464,1724482034505,-163.400557,0.00013027,2]
[335762465,1724482034532,-163.400557,0.00013122,2]
[335762466,1724482034558,-163.400557,0.00013217,2]
[335762467,1724482034581,-163.400557,0.00013312,2]
[335762468,1724482034604,-163.400557,0.00013407,2]
[335762469,1724482034627,-300.0,0.00013597,2]
[335762470,1724482034649,-221.0,0.00013597,2]
[335762471,1724482034671,-366.6329453,0.00013598,2]
[335762472,1724482052104,-207.7006306,0.00013425,2]
[335762473,1724482052127,-153.0,0.00013562,2]
[335762474,1724482052152,-444.53982634,0.00013598,2]
[335762475,1724482052175,-761.55058145,0.00013598,2]
[335762478,1724482116226,-590.52338767,0.00013598,2]
[335762479,1724482116250,-500.0,0.00013673,2]
[335762480,1724482116272,-2330.28669846,0.00013695,2]
[335762481,1724482116295,-129.18991387,0.00013697,2]
[335762557,1724482232073,-1183.06472298,0.00013598,2]
[335762558,1724482232084,-500.0,0.00013673,2]
[335762559,1724482232095,-300.0,0.00013697,2]
[335762561,1724482232105,-500.0,0.00013698,2]
[335762563,1724482232114,-500.0,0.00013698,2]
[335762564,1724482232124,-187.61127283,0.00013698,2]
[335762565,1724482232133,-375.0149141,0.00013698,2]
[335762566,1724482232142,-500.0,0.00013698,2]
[335762567,1724482232151,-500.0,0.00013698,2]
[335762568,1724482232160,-500.0,0.00013698,2]
[335762569,1724482232173,-500.0,0.00013698,2]
[335762570,1724482232183,-500.0,0.00013698,2]
[335762571,1724482232193,-500.0,0.00013698,2]
[335762572,1724482232203,-500.0,0.00013698,2]
[335762573,1724482232212,-500.0,0.00013698,2]
[335762574,1724482232221,-500.0,0.00013698,2]
[335762575,1724482232232,-500.0,0.00013698,2]
[335762577,1724482232243,-500.0,0.00013698,2]
[335762579,1724482232254,-500.0,0.00013698,2]
[335762580,1724482232265,-299.79804104,0.00013698,2]
[335762581,1724482232274,-500.0,0.00013698,2]
[335762582,1724482232283,-500.0,0.00013698,2]
[335762583,1724482232293,-422.45236022,0.00013698,2]
[335762584,1724482232302,-500.0,0.00013698,2]
[335762585,1724482232312,-500.0,0.00013698,2]
[335762586,1724482232321,-500.0,0.00013698,2]
[335762587,1724482232331,-500.0,0.00013698,2]
[335762588,1724482232340,-500.0,0.00013698,2]
[335762589,1724482232349,-500.0,0.00013698,2]
[335762590,1724482232359,-500.0,0.00013698,2]
[335762591,1724482232369,-500.0,0.00013698,2]
[335762592,1724482232378,-500.0,0.00013698,2]
[335762593,1724482232388,-500.0,0.00013698,2]
[335762594,1724482232399,-500.0,0.00013698,2]
[335762595,1724482232409,-500.0,0.00013698,2]
[335762596,1724482232421,-500.0,0.00013698,2]
[335762597,1724482232432,-500.0,0.00013698,2]
[335762598,1724482232447,-500.0,0.00013698,2]
[335762599,1724482232458,-500.0,0.00013698,2]
[335762600,1724482232468,-500.0,0.00013698,2]
[335762601,1724482232477,-500.0,0.00013698,2]
[335762602,1724482232488,-251.43312939,0.00013698,2]
[335762603,1724482232497,-500.0,0.00013698,2]
[335762604,1724482232507,-500.0,0.00013698,2]
[335762605,1724482232516,-500.0,0.00013698,2]
[335762606,1724482232527,-801.16,0.00013698,2]
[335762607,1724482232537,-500.0,0.00013698,2]
[335762608,1724482232546,-651.36,0.00013698,2]
[335762609,1724482232556,-712.66,0.00013698,2]
[335762610,1724482232566,-384.31784247,0.00013698,2]
[335762611,1724482232576,-1083.37,0.00013698,2]
[335762612,1724482232586,-512.19,0.00013698,2]
[335762613,1724482232597,-545.15,0.00013698,2]
[335762614,1724482232607,-680.87,0.00013698,2]
[335762615,1724482232617,-500.0,0.00013698,2]
[335762616,1724482232628,-1051.52,0.00013698,2]
[335762617,1724482232638,-500.0,0.00013698,2]
[335762618,1724482232649,-500.0,0.00013698,2]
[335762619,1724482232659,-500.0,0.00013698,2]
[335762620,1724482232670,-534.13155248,0.00013698,2]
[335762621,1724482232679,-500.0,0.00013698,2]
[335762622,1724482232689,-500.0,0.00013698,2]
[335762623,1724482232699,-500.0,0.00013698,2]
[335762624,1724482232709,-500.0,0.00013698,2]
[335762625,1724482232718,-500.0,0.00013698,2]
[335762626,1724482232728,-500.0,0.00013698,2]
[335762627,1724482232738,-500.0,0.00013698,2]
[335762628,1724482232747,-500.0,0.00013698,2]
[335762629,1724482232756,-500.0,0.00013698,2]
[335762630,1724482232765,-500.0,0.00013698,2]
[335762631,1724482232775,-110.04437012,0.00013698,2]
[335762670,1724482238298,-389.95562988,0.00013698,2]
[335762672,1724482238307,-546.66878442,0.00013698,2]
[335762674,1724482238317,-500.0,0.00013698,2]
[335762676,1724482238326,-500.0,0.00013698,2]
[335762678,1724482238335,-684.8,0.00013698,2]